Cogmind - Beta 16.1 *** ADVENTURER MODE // 2026.03.07 @ 11:03:43 Player: Ms. V3-11A Result: Destroyed by G-50 Soldier with Heavy Laser Performance ------------- Evolutions (4) 2000 Regions Visited (5) 1000 Robots Destroyed (56) 280 Value Destroyed (1531) 1531 Prototype IDs (10) 200 Alien Tech Used (0) 0 Bonus (800) 800 TOTAL SCORE: 5811 Bonus ------- Registered with UFD 300 Met Optimus in HQ 500 Cogmind --------- Core Integrity 0/850 Matter 159/300 Energy 60/100 System Corruption 11% Temperature Cool (9) Movement Walking (190) Ox1 Location -6/Factory Parts ------- > --- POWER (2) -------- (None) > --- PROPULSION (4) --- Armored Leg Armored Leg > --- UTILITY (6) ------ Large Storage Unit Improved Signal Interpreter Improved Particle Charger Makeshift Light Armor Plating > --- WEAPON (3) ------- Autogun Autogun Great Maul > --- INVENTORY (15) --- Light Nuclear Core Fission Core Energy Well (34) Structural Scanner A0-MCA's Component Scanner Cobbler Unit Vortex Trap DRS Beacon (Ready) Botcube Peak State ------------ > --- POWER ------------ Light Angular Momentum Engine Fission Core > --- PROPULSION ------- Light Treads Light Treads Improved Treads Spiked Treads > --- UTILITY ---------- High-capacity Storage Unit Advanced Sensor Array Improved Signal Interpreter Makeshift Light Armor Plating Improved Shield Generator Hacking Suite > --- WEAPON ----------- High-powered Shock Rifle Heavy Plasma Cannon Assault Cannon > --- INVENTORY -------- Light Treads Armored Leg Armored Leg Large Storage Unit Energy Well Structural Scanner Subdweller Optics Improved Particle Charger Light Armor Plating Makeshift Light Armor Plating Authchip [Processor] A0-MCA's Component Scanner Cobbler Unit EM Pulse Cannon Heavy Rocket Launcher Great Maul Vortex Trap DRS Beacon Botcube [Rating: 56] Favorites ----------- Power Subdweller Power Source Engine Subdweller Power Source Power Core Fission Core Propulsion Light Treads Treads Light Treads Leg Aluminum Leg Utility Makeshift Light Armor Plating Device Subdweller Optics Storage High-capacity Storage Unit Processor Improved Signal Interpreter Hackware Hacking Suite Protection Makeshift Light Armor Plating Weapon Heavy Plasma Cannon Energy Gun Heavy Riot Gun Energy Cannon Heavy Plasma Cannon Ballistic Gun Subdweller Machine Gun Ballistic Cannon Light Cannon Impact Weapon Hammer Build | -11 -10 -10 -9 -9 -6 ------- Run | Yrd Mat Sub Rec Scr Fac Slots Evolved 8 | . . . . . 8 Power 1 | . . . . . 1 Propulsion 2 | . . . . . 2 Utility 4 | . . . . . 4 Weapon 1 | . . . . . 1 Parts Attached 54 | . 7 21 4 3 19 Power 9 | . . 5 . 1 3 Engine 7 | . . 5 . 1 1 Core 2 | . . . . . 2 Reactor . | . . . . . . Propulsion 11 | . 1 4 1 . 5 Treads 8 | . . 4 1 . 3 Leg 3 | . 1 . . . 2 Wheel . | . . . . . . Hover . | . . . . . . Flight . | . . . . . . Utility 17 | . 3 5 3 . 6 Device 6 | . . 3 . . 3 Storage 3 | . 1 . 1 . 1 Processor 1 | . . . . . 1 Hackware 2 | . . . 1 . 1 Protection 5 | . 2 2 1 . . Artifact . | . . . . . . Weapon 17 | . 3 7 . 2 5 Energy Gun 5 | . 1 3 . . 1 Energy Cannon 3 | . . 1 . 2 . Ballistic Gun 5 | . . 3 . . 2 Ballistic Cannon 2 | . 1 . . . 1 Launcher . | . . . . . . Special Weapon . | . . . . . . Impact Weapon 2 | . 1 . . . 1 Slashing Weapon . | . . . . . . Piercing Weapon . | . . . . . . Special Melee Weapon . | . . . . . . Unidentified Prototypes . | . . . . . . Corrupted Parts 2 | . . . 1 . 1 System Corruption 8 | . . . 3 . 5 Parts Lost 35 | . 2 16 1 . 16 Power 6 | . . 4 . . 2 Propulsion 9 | . . 4 . . 5 Utility 8 | . 1 2 . . 5 Weapon 12 | . 1 6 1 . 4 Highest Loss Streak 14 | . 1 5 1 . 14 To Critical Strikes 2 | . . 2 . . . Average Backups 12 | 5 7 11 13 16 11 Power . | 1 . 1 2 . . Propulsion 1 | 3 3 1 . 2 1 Utility 6 | . 2 4 6 10 7 Weapon 3 | 1 2 4 4 3 1 Tool/Special . | . . . . . . Unused Backups 27 | . 5 2 . 9 11 Power 6 | . 2 1 . 1 2 Propulsion 3 | . 1 1 . . 1 Utility 10 | . 1 . . 2 7 Weapon 8 | . 1 . . 6 1 Tool/Special . | . . . . . . Average Slot Usage (%) 91 | . 95 88 82 98 76 Engine 13 | . 14 13 14 14 9 Treads 19 | . . 21 18 28 20 Leg 4 | . 28 . . . . Device 2 | . . 5 . . 7 Storage 13 | . 14 14 14 14 5 Protection 10 | . 10 5 13 14 4 Energy Gun 6 | . 11 11 7 . 2 Energy Cannon 11 | . . 5 . 24 9 Ballistic Gun 5 | . 3 9 14 1 . Ballistic Cannon 1 | . 9 . . . 1 Peak Build Rating 56 | 6 8 16 17 27 56 Average Rating 18 | 6 7 12 15 23 39 On Entrance 13 | 6 6 8 16 15 27 Avg Prop Armor Cover (%) . | . . . . . . Naked Turns . | . . . . . . Heaviest Build 89 | 14 33 37 53 69 89 Greatest Support 83 | 20 20 40 43 43 83 Greatest Overweight (x) 9 | . 1 1 2 1 9 Average Overweight (x) . | . . . 1 1 . Largest Inventory Capacity 20 | 8 15 15 20 20 20 Average Capacity 16 | 8 12 15 17 20 18 Most Carried 20 | 5 10 15 20 20 20 Average Carried 14 | 5 7 12 15 18 14 Final Capacity 20 | 8 15 15 20 20 15 Final Carried 20 | 4 10 15 20 20 10 Class Distribution -------------------- 92% | Mutant 3% | Tank Dominant Class ---------------- Mutant | -10/Materials Mutant | -10/Subcaves Mutant | -9/Recycling Mutant | -9/Scraptown Mutant | -6/Factory Resources | -11 -10 -10 -9 -9 -6 ----------- Run | Yrd Mat Sub Rec Scr Fac Matter Collected 990 | 200 43 405 31 94 217 Remotely . | . . . . . . Salvage Created 1993 | . 401 859 211 . 522 Parts 111 | . 30 49 8 . 24 Haulers Intercepted 2 | . 2 . . . . Recyclers Shooed 2 | . 1 . . . 1 Parts Field Recycled . | . . . . . . Retrieved Matter . | . . . . . . Parts Self-Destructed 9 | . . 9 . . . Prevented 2 | . . 2 . . . Parts Restored . | . . . . . . Kills | -11 -10 -10 -9 -9 -6 ------- Run | Yrd Mat Sub Rec Scr Fac Combat Hostiles Destroyed 42 | . 10 22 2 . 8 Guns 31 | . 8 17 2 . 4 Cannons 9 | . 1 5 . . 3 AOE 1 | . 1 . . . . Classes Destroyed 16 | . 6 5 1 . 4 Worker 3 | . 1 . . . 2 Builder 1 | . 1 . . . . Hauler 2 | . 2 . . . . Recycler 4 | . . . 2 . 2 Operator 1 | . . . . . 1 Turret 2 | . . 2 . . . Watcher 1 | . 1 . . . . Swarmer 17 | . 6 7 . . 4 Grunt 5 | . 4 1 . . . Sentry 3 | . . 1 2 . . Hunter 1 | . . . . . 1 Programmer 2 | . . . . . 2 Behemoth 1 | . . . . . 1 Artisan 1 | . . 1 . . . Cobbler 1 | . . 1 . . . Subdweller 13 | . . 13 . . . Best Kill Streak 8 | . 8 7 1 . 5 Combat Bots Only 7 | . 7 3 1 . 5 Max Kills in Single Turn 2 | . 2 1 1 . 1 Gunslinging . | . . . . . . Exploded 1 | . 1 . . . . Melee . | . . . . . . Uniques/NPCs Destroyed . | . . . . . . Combat | -11 -10 -10 -9 -9 -6 -------- Run | Yrd Mat Sub Rec Scr Fac Hostile Shots Fired 399 | . 58 186 4 . 151 Missed 134 | . 22 74 . . 38 Hits 265 | . 36 112 4 . 113 Projectile 265 | . 36 112 4 . 113 AOE 7 | . . 7 . . . Critical Strikes 9 | . . 4 . . 5 Part Disruptions 1 | . . . . . 1 Damage Taken 3998 | . 345 1547 48 . 2058 Core 1073 | . 28 175 12 . 858 Absorbed by Shields 153 | . . . . . 153 Ignored by Resistances 1056 | . 109 442 13 . 492 Core Remaining (%) 57 | 100 . . . 14 . Volleys Fired 173 | . 28 94 5 . 46 Largest 3 | . 2 2 2 . 3 Hottest 187 | . 70 120 90 . 187 Shots Fired 297 | . 55 164 6 . 72 Gun 193 | . 44 124 6 . 19 Cannon 104 | . 11 40 . . 53 Launcher . | . . . . . . Special . | . . . . . . Kinetic 124 | . 27 61 5 . 31 Thermal 55 | . . 44 . . 11 Explosive . | . . . . . . Electromagnetic 118 | . 28 59 1 . 30 Robot Hit Streak 61 | . 8 61 14 . 20 Robot Miss Streak 4 | . 2 4 . . 2 Penetration Max . | . . . . . . Secondary Targets 2 | . . 2 . . . Max Gunslinging Chain 1 | . . 1 . . . Shots Hit Robots 225 | . 34 124 5 . 62 Core Hits 91 | . 18 49 6 . 18 Critical Kills 1 | . . 1 . . . Critical Parts Destroyed . | . . . . . . Critical Strikes 3 | . . 1 . . 2 Destroy 1 | . . 1 . . . Blast 2 | . . . . . 2 Melee Attacks 8 | . 3 . . . 5 Impact 8 | . 3 . . . 5 Slashing . | . . . . . . Piercing . | . . . . . . Sneak Attacks 1 | . . . . . 1 Combat Hostiles . | . . . . . . Follow-up Attacks . | . . . . . . Damage Inflicted 4646 | . 668 2163 153 . 1662 Guns 2444 | . 348 1629 135 . 332 Cannons 1525 | . 131 458 . . 936 Explosions 318 | . 179 76 . . 63 Melee 295 | . . . . . 295 Ramming 64 | . 10 . 18 . 36 Kinetic 1804 | . 227 842 103 . 632 Thermal 1102 | . 179 591 . . 332 Explosive . | . . . . . . Electromagnetic 1381 | . 252 730 32 . 367 Impact 295 | . . . . . 295 Slashing . | . . . . . . Piercing . | . . . . . . Highest Corruption 11 | . . . 3 . 11 Average Corruption 4 | . . . 3 . 7 Corruption Purged . | . . . . . . Corruption Blocked . | . . . . . . Effects 28 | . . . 18 . 10 Message Errors 2 | . . . 2 . . Matter Fused 11 | . . . 8 . 3 Heat Flow Errors 3 | . . . 3 . . Energy Discharges 4 | . . . 2 . 2 Data Loss (minor) 7 | . . . 3 . 4 Alerts 1 | . . . . . 1 Overload Shots . | . . . . . . Overflow Damage 193 | . 60 3 . . 130 Projectiles 3 | . . 3 . . . Explosions 60 | . 60 . . . . Melee 130 | . . . . . 130 Knockbacks 11 | . 1 4 . . 6 Impact 4 | . . . . . 4 Kinetic 7 | . 1 4 . . 2 Secondary . | . . . . . . Self-Inflicted Damage 75 | . 67 8 . . . Shots 3 | . 2 1 . . . Rammed 7 | . . . 5 . 2 Targets Rammed 11 | . 2 . 5 . 4 Kicked 2 | . 2 . . . . Crushed 2 | . . . . . 2 Highest Temperature 670 | . 178 17 279 . 670 Average Temperature 165 | . 57 6 91 . 266 Received Heat Transfer 840 | . 117 354 18 . 351 Effects 45 | . . . . . 45 Shutdowns 11 | . . . . . 11 Energy Bleed 10 | . . . . . 10 Interference 3 | . . . . . 3 Matter Decay 2 | . . . . . 2 Damage (minor) 2 | . . . . . 2 Damage (major) 14 | . . . . . 14 Damage (core) 3 | . . . . . 3 Siege Activations . | . . . . . . Martial Activations . | . . . . . . Shielding Activations . | . . . . . . Robots Disrupted . | . . . . . . Combat Hostiles . | . . . . . . Robots Corrupted 2 | . . . . . 2 Combat Hostiles 1 | . . . . . 1 Parts Fried 7 | . . 3 . . 4 Impact Corruptions 4 | . . . . . 4 Robots Melted . | . . . . . . Combat Hostiles . | . . . . . . Parts Melted 1 | . . 1 . . . Heat Transferred 1593 | . 200 943 . . 450 Parts Sabotaged . | . . . . . . Parts Stolen . | . . . . . . Parts Stripped . | . . . . . . Power Chain Reactions 5 | . 2 2 . . 1 Alert | -11 -10 -10 -9 -9 -6 ------- Run | Yrd Mat Sub Rec Scr Fac Maximum Alert Level . | . . . . . . Low Security (%) 100 | 100 100 . 100 . 100 Level 1 . | . . . . . . Level 2 . | . . . . . . Level 3 . | . . . . . . Level 4 . | . . . . . . Level 5 . | . . . . . . High Security . | . . . . . . Max Security . | . . . . . . Peak Influence 147 | . 147 . 20 . 120 Initial . | . . . . . . Average 14 | . 22 . 1 . 16 Influence Increases 1293 | . 318 650 59 . 266 Destroy 0b10 Robot/C 620 | . 200 220 40 . 160 Destroy 0b10 Robot/NC 60 | . 25 . 10 . 25 Destroy Leader 96 | . 36 10 . . 50 Allied During Kill 1 | . . . . . 1 Successful Hack 21 | . 12 . 9 . . Disable Machine 45 | . 27 . . . 18 Destroy Structure 30 | . 18 . . . 12 Lose Combat Pursuer 420 | . . 420 . . . Influence Decreases 1268 | . 318 650 59 . 241 Time Decay 1073 | . 298 550 59 . 166 Lost Part 180 | . 20 100 . . 60 Lost Ally 15 | . . . . . 15 Squads Dispatched 2 | . . . . . 2 Investigation . | . . . . . . Extermination 1 | . . . . . 1 Reinforcement 1 | . . . . . 1 Assault . | . . . . . . Garrison . | . . . . . . Intercept . | . . . . . . Searches Triggered . | . . . . . . Construction Impeded . | . . . . . . Haulers Reinforced . | . . . . . . Active Scanning Responses . | . . . . . . Cargo Convoy Interrupts . | . . . . . . Stealth | -11 -10 -10 -9 -9 -6 --------- Run | Yrd Mat Sub Rec Scr Fac Distress Signals 1 | . 1 . . . . Communications Jammed . | . . . . . . Distress Signals . | . . . . . . Times Spotted 76 | . 17 45 1 . 13 Peak Tracking Total 6 | . 4 6 . . 5 Tactical Retreats 4 | . . 4 . . . Traps | -11 -10 -10 -9 -9 -6 ------- Run | Yrd Mat Sub Rec Scr Fac Traps Triggered 3 | . 1 2 . . . Indirectly . | . . . . . . Trap Hack Attempts . | . . . . . . Triggered . | . . . . . . Disarmed . | . . . . . . Reprogrammed . | . . . . . . Reused . | . . . . . . Traps Extracted . | . . . . . . Installed . | . . . . . . Triggered . | . . . . . . Most Traps Carried 1 | . . . . 1 1 Machines | -11 -10 -10 -9 -9 -6 ---------- Run | Yrd Mat Sub Rec Scr Fac Machines Disabled 7 | . 4 1 . . 2 Max in Single Turn 3 | . 3 1 . . 1 Machines Repaired . | . . . . . . Machines Dismantled . | . . . . . . Machines Sabotaged . | . . . . . . Overloaded Fab Kills . | . . . . . . Hacking | -11 -10 -10 -9 -9 -6 --------- Run | Yrd Mat Sub Rec Scr Fac Machines Accessed 13 | . 6 . 4 2 1 Terminals 10 | . 6 . 4 . . Fabricators . | . . . . . . Repair Stations . | . . . . . . Recycling Units . | . . . . . . Scanalyzers 1 | . . . . . 1 Garrison Access . | . . . . . . Total Hacks 37 | . 18 . 14 2 3 Successful 17 | . 8 . 5 2 2 Failed 19 | . 10 . 9 . . Catastrophic 1 | . . . 1 . . Database Lockouts 1 | . . . . . 1 Manual 29 | . 16 . 13 . . Terminals 32 | . 18 . 14 . . Fabricators . | . . . . . . Repair Stations . | . . . . . . Recycling Units . | . . . . . . Scanalyzers 3 | . . . . . 3 Garrison Access . | . . . . . . Terminal Hacks 8 | . 5 . 1 2 . Record 1 | . . . . 1 . Robot Analysis 4 | . 3 . 1 . . Prototype ID Bank 2 | . 2 . . . . Proto ID Catalog 1 | . . . . 1 . Fabricator Hacks . | . . . . . . Repair Station Hacks . | . . . . . . Recycling Unit Hacks . | . . . . . . Scanalyzer 2 | . . . . . 2 Retrieve Study 2 | . . . . . 2 Garrison Access Hacks . | . . . . . . Unauthorized Hacks 6 | . 3 . 3 . . Terminals 6 | . 3 . 3 . . Botnet 6 | . 3 . 3 . . Fabricators . | . . . . . . Repair Stations . | . . . . . . Recycling Units . | . . . . . . Scanalyzers . | . . . . . . Garrison Access . | . . . . . . Data Cores Recovered . | . . . . . . Used . | . . . . . . Hacking Detections 9 | . 5 . 3 . 1 Full Trace Events . | . . . . . . Feedback Events . | . . . . . . Feedback Blocked . | . . . . . . Robot Schematics Acquired . | . . . . . . Robots Built . | . . . . . . Authchips . | . . . . . . Time . | . . . . . . Total Robot Build Rating . | . . . . . . Part Schematics Acquired . | . . . . . . Parts Built . | . . . . . . Authchips . | . . . . . . Time . | . . . . . . Total Part Build Rating . | . . . . . . Part Studies Acquired 2 | . . . . . 2 Parts Repaired . | . . . . . . Time . | . . . . . . Parts Recycled . | . . . . . . Recycled Matter . | . . . . . . Retrieved Matter . | . . . . . . Retrieved Components . | . . . . . . Parts Scanalyzed . | . . . . . . Part Schematics Acquired . | . . . . . . Parts Damaged . | . . . . . . Bothacking | -11 -10 -10 -9 -9 -6 ------------ Run | Yrd Mat Sub Rec Scr Fac Used RIF Installer . | . . . . . . Robots Hacked . | . . . . . . Non-combat . | . . . . . . Combat . | . . . . . . Robot Hacks Applied . | . . . . . . Relay Couplers Released . | . . . . . . Fabnet Peak Effective % . | . . . . . . Robots Rewired 1 | . . . . . 1 Allies Hacked . | . . . . . . Hacks Repelled . | . . . . . . Allies | -11 -10 -10 -9 -9 -6 -------- Run | Yrd Mat Sub Rec Scr Fac Total Allies 1 | . . . . . 1 Largest Group 1 | . . . . . 1 Highest-Rated Group 12 | . . . . . 12 Highest-Rated Ally 12 | . . . . . 12 Initial UFD Resources 23 | . . . . . 23 Total Orders . | . . . . . . Ally Attacks 13 | . . . . . 13 Total Damage 84 | . . . . . 84 Kills . | . . . . . . Allies Corrupted . | . . . . . . Allies Melted . | . . . . . . Intel | -11 -10 -10 -9 -9 -6 ------- Run | Yrd Mat Sub Rec Scr Fac Active Infowar (turns) 1650 | . . 905 . . 745 Optics 810 | . . 810 . . . Sensors 745 | . . . . . 745 Seismic 95 | . . 95 . . . Robot Analysis Total 4 | . 3 . 1 . . Derelict Logs Recovered 6 | . . 1 . 5 . Drone Launches . | . . . . . . Drone Recoveries . | . . . . . . Exploration | -11 -10 -10 -9 -9 -6 ------------- Run | Yrd Mat Sub Rec Scr Fac Turns Passed 9506 | 1 1565 2619 997 3362 962 Spaces Moved 3932 | 1 564 1225 384 1391 367 Core 35 | . . . . . 35 Treads 3301 | . . 1217 384 1391 309 Legs 596 | 1 564 8 . . 23 Wheels . | . . . . . . Hover . | . . . . . . Flight . | . . . . . . Fastest Speed 50 | 120 120 160 240 240 50 Average Speed 205 | 120 147 187 246 240 185 Slowest Speed 500 | 120 190 240 320 240 500 Overloaded Moves . | . . . . . . Propulsion Burnouts . | . . . . . . Robots Hopped . | . . . . . . Potential Cave-ins . | . . . . . . Cave-ins Triggered . | . . . . . . Exploration Rate (%) 53 | 1 84 67 78 85 6 Regions Visited 5 Branch Regions 3 Pre-discovered Areas 1 | . . . . 1 . Known Exits Taken . | . . . . . . Unknown Exits Taken 5 | 1 1 1 1 1 . Scrap Searched 10 | . . 4 . 6 . Spaces Dug . | . . . . . . Terrain Destroyed 34 | . 17 4 . . 13 Melee . | . . . . . . Projectile 2 | . . . . . 2 AOE 32 | . 17 4 . . 11 Terrain Rammed . | . . . . . . Walls Destroyed . | . . . . . . Machines Disabled . | . . . . . . Actions | -11 -10 -10 -9 -9 -6 --------- Run | Yrd Mat Sub Rec Scr Fac Total 5033 | 2 1233 1386 426 1421 565 Wait 702 | . 618 25 16 2 41 Move 3927 | . 563 1224 383 1390 367 Hop . | . . . . . . Pick Up 66 | . 10 17 8 13 18 Fast Attach 26 | . 1 5 2 3 15 Attach 24 | . 3 14 1 . 6 Detach 1 | . . 1 . . . Swap 8 | . 3 2 1 . 2 Drop 34 | 2 2 4 5 13 8 Fire 173 | . 28 94 5 . 46 Melee 8 | . 3 . . . 5 Ram . | . . . . . . Kick 2 | . 2 . . . . Crush 9 | . . . 5 . 4 Escape Stasis . | . . . . . . Rewire 53 | . . . . . 53 Trap . | . . . . . . Miscellaneous . | . . . . . . Route ------- -11/Scrapyard -10/Materials (discovered 4 exits: [*Mat x2] / [*Min] / [*Sub]) -10/Subcaves (discovered 3 exits: [*Mat x2] / *Rec) -9/Recycling -9/Scraptown -6/Factory (discovered 2 exits: *Low x2) History --------- Turn | Location | Event 2 | -11/Scrapyard | Discovered new exit (range 0) 2 | -11/Scrapyard | Entered Materials 93 | -10/Materials | Discovered new exit (range 12) 169 | -10/Materials | Destroyed 7 combat bots 249 | -10/Materials | Discovered new exit (range 15) 308 | -10/Materials | Build established: Mutant 568 | -10/Materials | Discovered new exit (range 16) 1532 | -10/Materials | Discovered new exit (range 8) 1567 | -10/Materials | Entered Subcaves 1570 | -10/Subcaves | Discovered new exit (range 13) 1658 | -10/Subcaves | Lost 5 parts (1p1n1u2w) 2756 | -10/Subcaves | Ambushed by angry Subdweller bent on revenge 2779 | -10/Subcaves | Core integrity fell below 50% 2883 | -10/Subcaves | Discovered new exit (range 13) 2931 | -10/Subcaves | Disturbed a concealed Subdweller 2958 | -10/Subcaves | A swath of the cavern ceiling suddenly collapsed 3006 | -10/Subcaves | A Subdweller sparked back to life 3006 | -10/Subcaves | A Subdweller sparked back to life 3006 | -10/Subcaves | A Subdweller sparked back to life 3047 | -10/Subcaves | Lost 3 parts (1p1n1w) 3196 | -10/Subcaves | Shifting Twisted Machinery released Mak. Light Armor Plating 3201 | -10/Subcaves | Shifting Twisted Machinery released Sub. Laser 3329 | -10/Subcaves | Disturbed a concealed Subdweller 3681 | -10/Subcaves | Discovered new exit (range 15) 3959 | -10/Subcaves | Core integrity fell below 20% 4186 | -10/Subcaves | Entered Recycling 5121 | -9/Recycling | Scanned before Scraplab entrance 5157 | -9/Recycling | Entered Scraplab 5179 | -9/Recycling | Discovered new exit (range 2) 5183 | -9/Recycling | Entered Scraptown 5183 | -9/Scraptown | System corruption cleaned by C-Scrubber 5611 | -9/Scraptown | Scanned Subdweller tech in exchange for log data 5616 | -9/Scraptown | Learned Factory garrison access intel 5621 | -9/Scraptown | Learned location of Quarantine (-3) 5623 | -9/Scraptown | Learned location of 2 exits from Upper Caves 5626 | -9/Scraptown | Learned 12 Factory zone layouts 6030 | -9/Scraptown | Visited Red Mages 6102 | -9/Scraptown | Visited Comm Corps 6246 | -9/Scraptown | Visited Assassins FH 6819 | -9/Scraptown | Heard Great Nut preacher, LISTEN AND RECITE! 6875 | -9/Scraptown | Visited CR-KLE's Repair Center 6925 | -9/Scraptown | Visited Cave Peace 6963 | -9/Scraptown | Visited SPCMW 7163 | -9/Scraptown | Visited Shadow of the Wyrm 7227 | -9/Scraptown | Visited UFD Registry 7227 | -9/Scraptown | Registered with UFD as "Monorigger" 7275 | -9/Scraptown | Visited Curators Association 7364 | -9/Scraptown | Visited DA-N13 Charitable Foundation 7386 | -9/Scraptown | Found DCF Scrap (33 items) 7454 | -9/Scraptown | Visited Chapter 10 7552 | -9/Scraptown | Delivered Scrap Shield to a Scientist 7655 | -9/Scraptown | Visited LU-1G1's Boring Crew 7768 | -9/Scraptown | Visited Scrapoid Pod Storage 7818 | -9/Scraptown | Visited Derelict Rescue Squad 7833 | -9/Scraptown | Found DRS Beacon 7865 | -9/Scraptown | Visited Botcube Research 7882 | -9/Scraptown | Found Botcube 7921 | -9/Scraptown | Visited A0-MCA Data Center 7936 | -9/Scraptown | Given a C- rating by A0-MCA 7938 | -9/Scraptown | Found A0-MCA's Component Scanner 7992 | -9/Scraptown | Visited Science Guys 8082 | -9/Scraptown | Visited Cartography Club 8389 | -9/Scraptown | Met Optimus 8389 | -9/Scraptown | Accepted into 0bPrime 8538 | -9/Scraptown | Discovered new exit (range 3) 8545 | -9/Scraptown | Entered Factory 8545 | -6/Factory | Evolved 8 slots: Power x1, Propulsion x2, Utility x4, Weapon x1 8546 | -6/Factory | Identified exit to Lower Caves 8547 | -6/Factory | Loaded intel: 4 garrison access locations 8583 | -6/Factory | Discovered exit to Lower Caves (range 15) 8924 | -6/Factory | Central database locked down 9246 | -6/Factory | Spotted B-75 Beast 9290 | -6/Factory | Core integrity fell below 50% 9311 | -6/Factory | Destroyed B-75 Beast 9384 | -6/Factory | Core integrity fell below 20% 9418 | -6/Factory | System corruption reached 10% 9423 | -6/Factory | Lost 14 parts (1p4n5u4w) 9507 | -6/Factory | Destroyed by G-50 Soldier with Heavy Laser Last Messages --------------- 09463_ Acquired Arm. Leg. 09465_ K-01 Serf collects debris. 09468_ Acquired A0-MCA's Component Scanner. 09470_ Acquired Vortex Trap. 09472_ Acquired Botcube. 09473_ K-01 Serf pushes D-53 Grenadier. 09475_ Acquired DRS Beacon. 09475_ K-01 Serf pushes D-53 Grenadier. 09476_ System corrupted: Energy discharge (-26). 09476_ K-01 Serf pushes D-53 Grenadier. 09477_ Acquired Fission Core. 09477_ K-01 Serf pushes D-53 Grenadier. 09480_ Acquired Imp. Particle Charger. 09480_ K-01 Serf pushes D-53 Grenadier. 09485_ Acquired Mak. Light Armor Plating. 09499_ K-01 Serf cleans the Subcomponent Replicator. 09501_ Acquired Autogun. 09501_ Fission Core destroyed. 09506_ System corrupted: Matter fused (-6). 09506_ Acquired Autogun. Map ----- +----------------------------------------------------+ | ??????????????????????????????######+############# | | ?????????????????????????????? | | ?????????????????????????????????????????????????? | | ?????????????????????????????????????????????????? | | ?????????????????????????????????????????????????? | | ?????????????????????????????????????????????????? | | ?????????????????????????????????????????????????? | | ?????????????????????????????????????????????????? | | ?????????????????????????????????????????????????? | | ?????????????????????????????????????????????????? | | ?????????????????????????????????????????????????? | | ?????????????????????????????????????????????????? | | ??????????????????? ???????????????????????????? | | ???????????????????? ???????????? ?????????????? | | ####??????????????? ???????????? ?????????????? | | ## ???????????????#+#+############ ??? ?????????? | | ## #############? %#%% m ? ?????????? | | ?# #! %### ? ?????????? | | ?# # """ """ ## !! ? ?????????? | | ?# # """ """ #" %%!! """ """ """ ""????????? | | ## # """ """ #?"#% """ """ """ """ """???? | | + = #??# ! """ """ """ """ """?? | | #################?##% "" "" "" "" "" | | ??# #??????????# " "" "" "" "" "" | | ??# #??????????# "" ! %% u | | ### #??#####???# @!] | | #??# ##### */ = | | #??#!% k % [%k | | """ #### ##### = %*%[% ? | | """! ##???# =%% ^=g A*t* ####????? | | """ ################# "%%* #???????? | | ## =# """ *! #???????? | | + """ # ^^""% * #???????? | | +########+## ## """ # ^ #???????? | | # ! # ## """ # ^ = #???????? | | # # ## # "T"" %#???????? | | # "" # ## # / """"" #???????? | | # S"" # #####+### !%[ ?????? | | # "" # %= ????? | | # ####### ################## ???? | | ########?????# #????????????????######### ??? | | #????# #?????# #?#######??????????????????# ?? | | ################## #?# ######???????????????#? | | + # ### #????????????????? | | ##### # > #????????????????? | | ????# ##### #????????????????? | | ????# """" """" #???# ###+##########????????? | | ????# """" """" #???### ### #????????? | | ????# """" """" #?????# #?# """ """ #????????? | | ????# """" """" #?????# #?# """ """ #????????? | +----------------------------------------------------+ Best States ------------- Heat Dissipation 37 Energy Generation 31 Energy Capacity 520 Matter Stores 300 Matter Capacity 300 Sight Range 21 Robot Scan Range 16 Terrain Scan Density 10 Armor Coverage 150 Resistance: KI 20 Resistance: TH 20 Resistance: EX 20 Resistance: EM 20 Resistance: I 20 Resistance: S 20 Resistance: P 20 Evasion (%) 55 Recoil Reduction 4 Particle Charging 20 Offensive Hacking 20 Authchip Count 1 Item Schematics ----------------- None Robot Schematics ------------------ None Fabricated ------------ Nothing Repaired ---------- Nothing Studied --------- Lgt. Treads | -6/Factory | Hacked Hpw. Shock Rifle | -6/Factory | Hacked Alien Tech Used ----------------- None Achievements -------------- Low-level Research Challenges ------------ None Game ------ Seed HelicalDoorMask Manual? 0 Play Time 00:41:50 Cumulative 465.1 hours Start 2026.03.07 @ 10:21:09 End 2026.03.07 @ 11:03:43 Sessions 1 Manual Loads 0 Difficulty Adventurer Special Mode None Game No. 342 Rogue 63 Adventurer 253 Explorer 26 Win Type - Total 2 Types 2/0/0/0/0/0/0/0/0/0 Lore% 83 Gallery% 70 Achievement% 50 Wizard Run 0 Options --------- Layout 2 ASCII 0 Keyboard 0 Movement Mouse Keybinds 0 Fullscreen 0 Font 16/Cog Map View 64x51 Zoom Use 0% Tactical HUD 1 Map Filters NONE Filters BRIGHTNESS(115)|SATURATION(100)|LOW_CONTRAST(0,16,30) Steam 1 RUN: 5a3cddb2-2549-4b88-a0ba-6ab5c8157002